{"text_format":"1","workbook":"xlsx","n_sheets":7,"sheets":["Members","Callings","Actions","Openings","FHE assigments","Statistics","Work area"],"not_rendered":{"charts":1,"images":0,"macros":1,"external_links":0,"defined_names":15,"comments":1,"pivot_tables":1},"unopened":[],"bounds":{"document_bytes":16777216,"sheet_cells":100000,"rows_first":2000,"rows_last":500,"rows_between":2000,"halvings":0,"cell_chars":16384,"cell_head_chars":4096},"cells_cut":0,"cells_raw":0,"read":"whole","date_system":"1900"}

{"sheet":"Members","index":0,"n_rows":158,"n_cols":20,"rows_kept":158,"cut":false,"hidden":false,"merged":[]}
["Name","Last Name","Gender","Apartment","FHE","RS/EQ","Calling","Phone","Carrier","Email","Birthday","Age","School","Major","Picture","Info","Membership","Interview","Fall"]
[null,null,"Female","AG1",5,2,null,null,null,null,null,{"$f":"IF(ISBLANK(K2),\"\",TRUNC((TODAY()-K2)/365.4,1))","v":""}]
[null,null,"Female","AG1",5,2,null,null,null,null,null,{"$f":"IF(ISBLANK(K3),\"\",TRUNC((TODAY()-K3)/365.4,1))","v":""}]
[null,null,"Female","AG1",5,2,null,null,null,null,null,{"$f":"IF(ISBLANK(K4),\"\",TRUNC((TODAY()-K4)/365.4,1))","v":""}]
[null,null,"Female","AG2",1,1,null,null,null,null,null,{"$f":"IF(ISBLANK(K5),\"\",TRUNC((TODAY()-K5)/365.4,1))","v":""}]
[null,null,"Female","AG2",1,1,null,null,null,null,null,{"$f":"IF(ISBLANK(K6),\"\",TRUNC((TODAY()-K6)/365.4,1))","v":""}]
[null,null,"Female","AG2",1,1,null,null,null,null,null,{"$f":"IF(ISBLANK(K7),\"\",TRUNC((TODAY()-K7)/365.4,1))","v":""}]
[null,null,"Female","AG2",1,1,null,null,null,null,null,{"$f":"IF(ISBLANK(K8),\"\",TRUNC((TODAY()-K8)/365.4,1))","v":""}]
[null,null,"Female","AG3",6,2,null,null,null,null,null,{"$f":"IF(ISBLANK(K9),\"\",TRUNC((TODAY()-K9)/365.4,1))","v":""}]
[null,null,"Female","AG3",6,2,null,null,null,null,null,{"$f":"IF(ISBLANK(K10),\"\",TRUNC((TODAY()-K10)/365.4,1))","v":""}]
[null,null,"Female","AG3",6,2,null,null,null,null,null,{"$f":"IF(ISBLANK(K11),\"\",TRUNC((TODAY()-K11)/365.4,1))","v":""}]
[null,null,"Female","AG3",6,2,null,null,null,null,null,{"$f":"IF(ISBLANK(K12),\"\",TRUNC((TODAY()-K12)/365.4,1))","v":""}]
[null,null,"Female","AG4",2,1,null,null,null,null,null,{"$f":"IF(ISBLANK(K13),\"\",TRUNC((TODAY()-K13)/365.4,1))","v":""}]
[null,null,"Female","AG4",2,1,null,null,null,null,null,{"$f":"IF(ISBLANK(K14),\"\",TRUNC((TODAY()-K14)/365.4,1))","v":""}]
[null,null,"Female","AG4",2,1,null,null,null,null,null,{"$f":"IF(ISBLANK(K15),\"\",TRUNC((TODAY()-K15)/365.4,1))","v":""}]
[null,null,"Female","AG4",2,1,null,null,null,null,null,{"$f":"IF(ISBLANK(K16),\"\",TRUNC((TODAY()-K16)/365.4,1))","v":""}]
[null,null,"Female","AG5",7,2,null,null,null,null,null,{"$f":"IF(ISBLANK(K17),\"\",TRUNC((TODAY()-K17)/365.4,1))","v":""}]
[null,null,"Female","AG5",7,2,null,null,null,null,null,{"$f":"IF(ISBLANK(K18),\"\",TRUNC((TODAY()-K18)/365.4,1))","v":""}]
[null,null,"Female","AG5",7,2,null,null,null,null,null,{"$f":"IF(ISBLANK(K19),\"\",TRUNC((TODAY()-K19)/365.4,1))","v":""}]
[null,null,"Female","AG5",7,2,null,null,null,null,null,{"$f":"IF(ISBLANK(K20),\"\",TRUNC((TODAY()-K20)/365.4,1))","v":""}]
[null,null,"Female","AG6",3,1,null,null,null,null,null,{"$f":"IF(ISBLANK(K21),\"\",TRUNC((TODAY()-K21)/365.4,1))","v":""}]
[null,null,"Female","AG6",3,1,null,null,null,null,null,{"$f":"IF(ISBLANK(K22),\"\",TRUNC((TODAY()-K22)/365.4,1))","v":""}]
[null,null,"Female","AG6",3,1,null,null,null,null,null,{"$f":"IF(ISBLANK(K23),\"\",TRUNC((TODAY()-K23)/365.4,1))","v":""}]
[null,null,"Female","AG6",3,1,null,null,null,null,null,{"$f":"IF(ISBLANK(K24),\"\",TRUNC((TODAY()-K24)/365.4,1))","v":""}]
[null,null,"Female","AG7",1,2,null,null,null,null,null,{"$f":"IF(ISBLANK(K25),\"\",TRUNC((TODAY()-K25)/365.4,1))","v":""}]
[null,null,"Female","AG7",1,2,null,null,null,null,null,{"$f":"IF(ISBLANK(K26),\"\",TRUNC((TODAY()-K26)/365.4,1))","v":""}]
[null,null,"Female","AG7",1,2,null,null,null,null,null,{"$f":"IF(ISBLANK(K27),\"\",TRUNC((TODAY()-K27)/365.4,1))","v":""}]
[null,null,"Female","AG7",1,2,null,null,null,null,null,{"$f":"IF(ISBLANK(K28),\"\",TRUNC((TODAY()-K28)/365.4,1))","v":""}]
[null,null,"Female","AG8",4,1,null,null,null,null,null,{"$f":"IF(ISBLANK(K29),\"\",TRUNC((TODAY()-K29)/365.4,1))","v":""}]
[null,null,"Female","AG8",4,1,null,null,null,null,null,{"$f":"IF(ISBLANK(K30),\"\",TRUNC((TODAY()-K30)/365.4,1))","v":""}]
[null,null,"Female","AG8",4,1,null,null,null,null,null,{"$f":"IF(ISBLANK(K31),\"\",TRUNC((TODAY()-K31)/365.4,1))","v":""}]
[null,null,"Female","AG8",4,1,null,null,null,null,null,{"$f":"IF(ISBLANK(K32),\"\",TRUNC((TODAY()-K32)/365.4,1))","v":""}]
[null,null,"Male","CN1",1,1,null,null,null,null,null,{"$f":"IF(ISBLANK(K33),\"\",TRUNC((TODAY()-K33)/365.4,1))","v":""}]
[null,null,"Male","CN1",1,1,null,null,null,null,null,{"$f":"IF(ISBLANK(K34),\"\",TRUNC((TODAY()-K34)/365.4,1))","v":""}]
[null,null,"Male","CN1",1,1,null,null,null,null,null,{"$f":"IF(ISBLANK(K35),\"\",TRUNC((TODAY()-K35)/365.4,1))","v":""}]
[null,null,"Male","CN1",1,1,null,null,null,null,null,{"$f":"IF(ISBLANK(K36),\"\",TRUNC((TODAY()-K36)/365.4,1))","v":""}]
[null,null,"Male","CN2",3,1,null,null,null,null,null,{"$f":"IF(ISBLANK(K37),\"\",TRUNC((TODAY()-K37)/365.4,1))","v":""}]
[null,null,"Male","CN2",3,1,null,null,null,null,null,{"$f":"IF(ISBLANK(K38),\"\",TRUNC((TODAY()-K38)/365.4,1))","v":""}]
[null,null,"Male","CN2",3,1,null,null,null,null,null,{"$f":"IF(ISBLANK(K39),\"\",TRUNC((TODAY()-K39)/365.4,1))","v":""}]
[null,null,"Male","CN2",3,1,null,null,null,null,null,{"$f":"IF(ISBLANK(K40),\"\",TRUNC((TODAY()-K40)/365.4,1))","v":""}]
[null,null,"Male","CN3",2,1,null,null,null,null,null,{"$f":"IF(ISBLANK(K41),\"\",TRUNC((TODAY()-K41)/365.4,1))","v":""}]
[null,null,"Male","CN3",2,1,null,null,null,null,null,{"$f":"IF(ISBLANK(K42),\"\",TRUNC((TODAY()-K42)/365.4,1))","v":""}]
[null,null,"Male","CN3",2,1,null,null,null,null,null,{"$f":"IF(ISBLANK(K43),\"\",TRUNC((TODAY()-K43)/365.4,1))","v":""}]
[null,null,"Male","CN3",2,1,null,null,null,null,null,{"$f":"IF(ISBLANK(K44),\"\",TRUNC((TODAY()-K44)/365.4,1))","v":""}]
[null,null,"Female","VP55",3,2,null,null,null,null,null,{"$f":"IF(ISBLANK(K45),\"\",TRUNC((TODAY()-K45)/365.4,1))","v":""}]
[null,null,"Female","VP55",3,2,null,null,null,null,null,{"$f":"IF(ISBLANK(K46),\"\",TRUNC((TODAY()-K46)/365.4,1))","v":""}]
[null,null,"Female","VP55",3,2,null,null,null,null,null,{"$f":"IF(ISBLANK(K47),\"\",TRUNC((TODAY()-K47)/365.4,1))","v":""}]
[null,null,"Female","VP55",3,2,null,null,null,null,null,{"$f":"IF(ISBLANK(K48),\"\",TRUNC((TODAY()-K48)/365.4,1))","v":""}]
[null,null,"Female","VP56",5,1,null,null,null,null,null,{"$f":"IF(ISBLANK(K49),\"\",TRUNC((TODAY()-K49)/365.4,1))","v":""}]
[null,null,"Female","VP56",5,1,null,null,null,null,null,{"$f":"IF(ISBLANK(K50),\"\",TRUNC((TODAY()-K50)/365.4,1))","v":""}]
[null,null,"Female","VP56",5,1,null,null,null,null,null,{"$f":"IF(ISBLANK(K51),\"\",TRUNC((TODAY()-K51)/365.4,1))","v":""}]
[null,null,"Female","VP56",5,1,null,null,null,null,null,{"$f":"IF(ISBLANK(K52),\"\",TRUNC((TODAY()-K52)/365.4,1))","v":""}]
[null,null,"Female","VP57",2,2,null,null,null,null,null,{"$f":"IF(ISBLANK(K53),\"\",TRUNC((TODAY()-K53)/365.4,1))","v":""}]
[null,null,"Female","VP57",2,2,null,null,null,null,null,{"$f":"IF(ISBLANK(K54),\"\",TRUNC((TODAY()-K54)/365.4,1))","v":""}]
[null,null,"Female","VP57",2,2,null,null,null,null,null,{"$f":"IF(ISBLANK(K55),\"\",TRUNC((TODAY()-K55)/365.4,1))","v":""}]
[null,null,"Female","VP57",2,2,null,null,null,null,null,{"$f":"IF(ISBLANK(K56),\"\",TRUNC((TODAY()-K56)/365.4,1))","v":""}]
[null,null,"Female","VP58",5,1,null,null,null,null,null,{"$f":"IF(ISBLANK(K57),\"\",TRUNC((TODAY()-K57)/365.4,1))","v":""}]
[null,null,"Female","VP58",6,1,null,null,null,null,null,{"$f":"IF(ISBLANK(K58),\"\",TRUNC((TODAY()-K58)/365.4,1))","v":""}]
[null,null,"Female","VP58",6,1,null,null,null,null,null,{"$f":"IF(ISBLANK(K59),\"\",TRUNC((TODAY()-K59)/365.4,1))","v":""}]
[null,null,"Female","VP58",6,1,null,null,null,null,null,{"$f":"IF(ISBLANK(K60),\"\",TRUNC((TODAY()-K60)/365.4,1))","v":""}]
[null,null,"Female","VP58",6,1,null,null,null,null,null,{"$f":"IF(ISBLANK(K61),\"\",TRUNC((TODAY()-K61)/365.4,1))","v":""}]
[null,null,"Female","VP59",3,2,null,null,null,null,null,{"$f":"IF(ISBLANK(K62),\"\",TRUNC((TODAY()-K62)/365.4,1))","v":""}]
[null,null,"Female","VP59",3,2,null,null,null,null,null,{"$f":"IF(ISBLANK(K63),\"\",TRUNC((TODAY()-K63)/365.4,1))","v":""}]
[null,null,"Female","VP59",3,2,null,null,null,null,null,{"$f":"IF(ISBLANK(K64),\"\",TRUNC((TODAY()-K64)/365.4,1))","v":""}]
[null,null,"Female","VP59",3,2,null,null,null,null,null,{"$f":"IF(ISBLANK(K65),\"\",TRUNC((TODAY()-K65)/365.4,1))","v":""}]
[null,null,"Female","VP60",7,1,null,null,null,null,null,{"$f":"IF(ISBLANK(K66),\"\",TRUNC((TODAY()-K66)/365.4,1))","v":""}]
[null,null,"Female","VP60",7,1,null,null,null,null,null,{"$f":"IF(ISBLANK(K67),\"\",TRUNC((TODAY()-K67)/365.4,1))","v":""}]
[null,null,"Female","VP60",7,1,null,null,null,null,null,{"$f":"IF(ISBLANK(K68),\"\",TRUNC((TODAY()-K68)/365.4,1))","v":""}]
[null,null,"Female","VP60",7,1,null,null,null,null,null,{"$f":"IF(ISBLANK(K69),\"\",TRUNC((TODAY()-K69)/365.4,1))","v":""}]
[null,null,"Female","VP61",4,2,null,null,null,null,null,{"$f":"IF(ISBLANK(K70),\"\",TRUNC((TODAY()-K70)/365.4,1))","v":""}]
[null,null,"Female","VP61",4,2,null,null,null,null,null,{"$f":"IF(ISBLANK(K71),\"\",TRUNC((TODAY()-K71)/365.4,1))","v":""}]
[null,null,"Female","VP61",4,2,null,null,null,null,null,{"$f":"IF(ISBLANK(K72),\"\",TRUNC((TODAY()-K72)/365.4,1))","v":""}]
[null,null,"Female","VP61",4,2,null,null,null,null,null,{"$f":"IF(ISBLANK(K73),\"\",TRUNC((TODAY()-K73)/365.4,1))","v":""}]
[null,null,"Female","VP62",1,1,null,null,null,null,null,{"$f":"IF(ISBLANK(K74),\"\",TRUNC((TODAY()-K74)/365.4,1))","v":""}]
[null,null,"Female","VP62",1,1,null,null,null,null,null,{"$f":"IF(ISBLANK(K75),\"\",TRUNC((TODAY()-K75)/365.4,1))","v":""}]
[null,null,"Female","VP62",1,1,null,null,null,null,null,{"$f":"IF(ISBLANK(K76),\"\",TRUNC((TODAY()-K76)/365.4,1))","v":""}]
[null,null,"Female","VP62",1,1,null,null,null,null,null,{"$f":"IF(ISBLANK(K77),\"\",TRUNC((TODAY()-K77)/365.4,1))","v":""}]
[null,null,"Female","VP63",5,2,null,null,null,null,null,{"$f":"IF(ISBLANK(K78),\"\",TRUNC((TODAY()-K78)/365.4,1))","v":""}]
[null,null,"Female","VP63",5,2,null,null,null,null,null,{"$f":"IF(ISBLANK(K79),\"\",TRUNC((TODAY()-K79)/365.4,1))","v":""}]
[null,null,"Female","VP63",5,2,null,null,null,null,null,{"$f":"IF(ISBLANK(K80),\"\",TRUNC((TODAY()-K80)/365.4,1))","v":""}]
[null,null,"Female","VP65",2,2,null,null,null,null,null,{"$f":"IF(ISBLANK(K81),\"\",TRUNC((TODAY()-K81)/365.4,1))","v":""}]
[null,null,"Female","VP65",2,2,null,null,null,null,null,{"$f":"IF(ISBLANK(K82),\"\",TRUNC((TODAY()-K82)/365.4,1))","v":""}]
[null,null,"Female","VP65",2,2,null,null,null,null,null,{"$f":"IF(ISBLANK(K83),\"\",TRUNC((TODAY()-K83)/365.4,1))","v":""}]
[null,null,"Female","VP65",2,2,null,null,null,null,null,{"$f":"IF(ISBLANK(K84),\"\",TRUNC((TODAY()-K84)/365.4,1))","v":""}]
[null,null,"Female","VP66",6,1,null,null,null,null,null,{"$f":"IF(ISBLANK(K85),\"\",TRUNC((TODAY()-K85)/365.4,1))","v":""}]
[null,null,"Female","VP66",6,1,null,null,null,null,null,{"$f":"IF(ISBLANK(K86),\"\",TRUNC((TODAY()-K86)/365.4,1))","v":""}]
[null,null,"Female","VP66",6,1,null,null,null,null,null,{"$f":"IF(ISBLANK(K87),\"\",TRUNC((TODAY()-K87)/365.4,1))","v":""}]
[null,null,"Female","VP66",6,1,null,null,null,null,null,{"$f":"IF(ISBLANK(K88),\"\",TRUNC((TODAY()-K88)/365.4,1))","v":""}]
[null,null,"Male","VP67",2,2,null,null,null,null,null,{"$f":"IF(ISBLANK(K89),\"\",TRUNC((TODAY()-K89)/365.4,1))","v":""}]
[null,null,"Male","VP67",2,2,null,null,null,null,null,{"$f":"IF(ISBLANK(K90),\"\",TRUNC((TODAY()-K90)/365.4,1))","v":""}]
[null,null,"Male","VP67",2,2,null,null,null,null,null,{"$f":"IF(ISBLANK(K91),\"\",TRUNC((TODAY()-K91)/365.4,1))","v":""}]
[null,null,"Male","VP67",2,2,null,null,null,null,null,{"$f":"IF(ISBLANK(K92),\"\",TRUNC((TODAY()-K92)/365.4,1))","v":""}]
[null,null,"Male","VP68",3,2,null,null,null,null,null,{"$f":"IF(ISBLANK(K93),\"\",TRUNC((TODAY()-K93)/365.4,1))","v":""}]
[null,null,"Male","VP68",3,2,null,null,null,null,null,{"$f":"IF(ISBLANK(K94),\"\",TRUNC((TODAY()-K94)/365.4,1))","v":""}]
[null,null,"Male","VP68",3,2,null,null,null,null,null,{"$f":"IF(ISBLANK(K95),\"\",TRUNC((TODAY()-K95)/365.4,1))","v":""}]
[null,null,"Male","VP68",3,2,null,null,null,null,null,{"$f":"IF(ISBLANK(K96),\"\",TRUNC((TODAY()-K96)/365.4,1))","v":""}]
[null,null,"Male","VP69",5,2,null,null,null,null,null,{"$f":"IF(ISBLANK(K97),\"\",TRUNC((TODAY()-K97)/365.4,1))","v":""}]
[null,null,"Male","VP69",5,2,null,null,null,null,null,{"$f":"IF(ISBLANK(K98),\"\",TRUNC((TODAY()-K98)/365.4,1))","v":""}]
[null,null,"Male","VP69",5,2,null,null,null,null,null,{"$f":"IF(ISBLANK(K99),\"\",TRUNC((TODAY()-K99)/365.4,1))","v":""}]
[null,null,"Male","VP69",5,2,null,null,null,null,null,{"$f":"IF(ISBLANK(K100),\"\",TRUNC((TODAY()-K100)/365.4,1))","v":""}]
[null,null,"Male","VP70",4,2,null,null,null,null,null,{"$f":"IF(ISBLANK(K101),\"\",TRUNC((TODAY()-K101)/365.4,1))","v":""}]
[null,null,"Male","VP70",4,2,null,null,null,null,null,{"$f":"IF(ISBLANK(K102),\"\",TRUNC((TODAY()-K102)/365.4,1))","v":""}]
[null,null,"Male","VP70",4,2,null,null,null,null,null,{"$f":"IF(ISBLANK(K103),\"\",TRUNC((TODAY()-K103)/365.4,1))","v":""}]
[null,null,"Male","VP70",4,2,null,null,null,null,null,{"$f":"IF(ISBLANK(K104),\"\",TRUNC((TODAY()-K104)/365.4,1))","v":""}]
[null,null,"Male","VP71",7,2,null,null,null,null,null,{"$f":"IF(ISBLANK(K105),\"\",TRUNC((TODAY()-K105)/365.4,1))","v":""}]
[null,null,"Male","VP71",7,2,null,null,null,null,null,{"$f":"IF(ISBLANK(K106),\"\",TRUNC((TODAY()-K106)/365.4,1))","v":""}]
[null,null,"Male","VP71",7,2,null,null,null,null,null,{"$f":"IF(ISBLANK(K107),\"\",TRUNC((TODAY()-K107)/365.4,1))","v":""}]
[null,null,"Male","VP72",6,2,null,null,null,null,null,{"$f":"IF(ISBLANK(K108),\"\",TRUNC((TODAY()-K108)/365.4,1))","v":""}]
[null,null,"Male","VP72",5,2,null,null,null,null,null,{"$f":"IF(ISBLANK(K109),\"\",TRUNC((TODAY()-K109)/365.4,1))","v":""}]
[null,null,"Male","VP72",5,2,null,null,null,null,null,{"$f":"IF(ISBLANK(K110),\"\",TRUNC((TODAY()-K110)/365.4,1))","v":""}]
[null,null,"Male","VP72",5,2,null,null,null,null,null,{"$f":"IF(ISBLANK(K111),\"\",TRUNC((TODAY()-K111)/365.4,1))","v":""}]
[null,null,"Male","VP73",1,2,null,null,null,null,null,{"$f":"IF(ISBLANK(K112),\"\",TRUNC((TODAY()-K112)/365.4,1))","v":""}]
[null,null,"Male","VP73",1,2,null,null,null,null,null,{"$f":"IF(ISBLANK(K113),\"\",TRUNC((TODAY()-K113)/365.4,1))","v":""}]
[null,null,"Male","VP73",1,2,null,null,null,null,null,{"$f":"IF(ISBLANK(K114),\"\",TRUNC((TODAY()-K114)/365.4,1))","v":""}]
[null,null,"Male","VP73",1,2,null,null,null,null,null,{"$f":"IF(ISBLANK(K115),\"\",TRUNC((TODAY()-K115)/365.4,1))","v":""}]
[null,null,"Male","VP74",6,2,null,null,null,null,null,{"$f":"IF(ISBLANK(K116),\"\",TRUNC((TODAY()-K116)/365.4,1))","v":""}]
[null,null,"Male","VP74",6,2,null,null,null,null,null,{"$f":"IF(ISBLANK(K117),\"\",TRUNC((TODAY()-K117)/365.4,1))","v":""}]
[null,null,"Male","VP74",6,2,null,null,null,null,null,{"$f":"IF(ISBLANK(K118),\"\",TRUNC((TODAY()-K118)/365.4,1))","v":""}]
[null,null,"Male","VP74",6,2,null,null,null,null,null,{"$f":"IF(ISBLANK(K119),\"\",TRUNC((TODAY()-K119)/365.4,1))","v":""}]
[null,null,"Male","VP75",7,1,null,null,null,null,null,{"$f":"IF(ISBLANK(K120),\"\",TRUNC((TODAY()-K120)/365.4,1))","v":""}]
[null,null,"Male","VP75",6,1,null,null,null,null,null,{"$f":"IF(ISBLANK(K121),\"\",TRUNC((TODAY()-K121)/365.4,1))","v":""}]
[null,null,"Male","VP75",6,1,null,null,null,null,null,{"$f":"IF(ISBLANK(K122),\"\",TRUNC((TODAY()-K122)/365.4,1))","v":""}]
[null,null,"Male","VP75",6,1,null,null,null,null,null,{"$f":"IF(ISBLANK(K123),\"\",TRUNC((TODAY()-K123)/365.4,1))","v":""}]
[null,null,"Male","VP75",6,1,null,null,null,null,null,{"$f":"IF(ISBLANK(K124),\"\",TRUNC((TODAY()-K124)/365.4,1))","v":""}]
[null,null,"Male","VP76",7,1,null,null,null,null,null,{"$f":"IF(ISBLANK(K125),\"\",TRUNC((TODAY()-K125)/365.4,1))","v":""}]
[null,null,"Male","VP76",7,1,null,null,null,null,null,{"$f":"IF(ISBLANK(K126),\"\",TRUNC((TODAY()-K126)/365.4,1))","v":""}]
[null,null,"Male","VP76",7,1,null,null,null,null,null,{"$f":"IF(ISBLANK(K127),\"\",TRUNC((TODAY()-K127)/365.4,1))","v":""}]
[null,null,"Male","VP76",7,1,null,null,null,null,null,{"$f":"IF(ISBLANK(K128),\"\",TRUNC((TODAY()-K128)/365.4,1))","v":""}]
[null,null,"Male","VP77",4,1,null,null,null,null,null,{"$f":"IF(ISBLANK(K129),\"\",TRUNC((TODAY()-K129)/365.4,1))","v":""}]
[null,null,"Male","VP77",4,1,null,null,null,null,null,{"$f":"IF(ISBLANK(K130),\"\",TRUNC((TODAY()-K130)/365.4,1))","v":""}]
[null,null,"Male","VP77",4,1,null,null,null,null,null,{"$f":"IF(ISBLANK(K131),\"\",TRUNC((TODAY()-K131)/365.4,1))","v":""}]
[null,null,"Male","VP77",4,1,null,null,null,null,null,{"$f":"IF(ISBLANK(K132),\"\",TRUNC((TODAY()-K132)/365.4,1))","v":""}]
[null,null,"Male","VP78",1,1,null,null,null,null,null,{"$f":"IF(ISBLANK(K133),\"\",TRUNC((TODAY()-K133)/365.4,1))","v":""}]
[null,null,"Male","VP78",1,1,null,null,null,null,null,{"$f":"IF(ISBLANK(K134),\"\",TRUNC((TODAY()-K134)/365.4,1))","v":""}]
[null,null,"Male","VP78",1,1,null,null,null,null,null,{"$f":"IF(ISBLANK(K135),\"\",TRUNC((TODAY()-K135)/365.4,1))","v":""}]
[null,null,"Male","VP78",1,1,null,null,null,null,null,{"$f":"IF(ISBLANK(K136),\"\",TRUNC((TODAY()-K136)/365.4,1))","v":""}]
[null,null,"Male","x",null,1,null,null,null,null,null,{"$f":"IF(ISBLANK(K137),\"\",TRUNC((TODAY()-K137)/365.4,1))","v":""}]
[null,null,"Male","x",null,1,null,null,null,null,null,{"$f":"IF(ISBLANK(K138),\"\",TRUNC((TODAY()-K138)/365.4,1))","v":""}]
[null,null,"Female","x",null,2,null,null,null,null,null,{"$f":"IF(ISBLANK(K139),\"\",TRUNC((TODAY()-K139)/365.4,1))","v":""}]
[null,null,"Female","x",null,2,null,null,null,null,null,{"$f":"IF(ISBLANK(K140),\"\",TRUNC((TODAY()-K140)/365.4,1))","v":""}]
[]
[null,null,null,null,null,null,null,null,null,null,null,null,null,null,null,null,null,null,{"$f":"COUNTIF(S2:S140,\"y\")","v":0},"yes"]
["SCHOOL",null,"Males",{"$f":"SUM(IF((A2:A140=\"\")+(C2:C140<>\"Male\")+(F2:F140=\"\"), 0, 1))","v":0},null,null,null,null,null,null,null,null,null,null,null,null,null,null,{"$f":"COUNTIF(S2:S140,\"n\")","v":0},"no"]
["BYU",null,"Females",{"$f":"SUM(IF((A2:A140=\"\")+(C2:C140<>\"Female\")+(F2:F140=\"\"), 0, 1))","v":0},null,null,null,null,null,null,null,null,null,null,null,null,null,null,{"$f":"COUNTIF(S2:S140,\"~?\")","v":0},"maybe"]
["UVU",null,"Total",{"$f":"SUM(IF((F2:F140=\"\")+(A2:A140=\"\"), 0, 1))","v":0}]
["Provo College",null,"Total Names",{"$f":"COUNTA(A2:A140)","v":0}]
["Working"]
["Weber State"]
[]
[]
[]
["Carrier"]
["T-Mobile"]
["AT&T"]
["Verizon"]
["Sprint"]
["Cricket"]
["No texts"]

{"sheet":"Callings","index":1,"n_rows":211,"n_cols":6,"rows_kept":211,"cut":false,"hidden":false,"merged":[]}
["Calling","Current","Current Status","Proposed","Proposed Status","Gender"]
["1 Elders   President**",null,"Open",null,null,"M"]
["1 Elders  1st Counselor",null,"Open",null,null,"M"]
["1 Elders  2nd Counselor",null,"Open",null,null,"M"]
["1 Elders  Secretary",null,"Open",null,null,"M"]
["1 Elders Activities Council Chair",null,"Open",null,null,"M"]
["1 Elders Activities Council Member",null,"Open",null,null,"M"]
["1 Elders Activities Council Member",null,"Open",null,null,"M"]
["1 Elders Activities Council Member",null,"Open",null,null,"M"]
["1 Elders Instructor",null,"Open",null,null,"M"]
["1 Elders Instructor",null,"Open",null,null,"M"]
["1 Elders Sacrament & Fast Offerings",null,"Open",null,null,"M"]
["1 Elders Sacrament & Fast Offerings",null,"Open",null,null,"M"]
["1 Relief Society   President**",null,"Open",null,null,"F"]
["1 Relief Society  1st Counselor",null,"Open",null,null,"F"]
["1 Relief Society  2nd Counselor",null,"Open",null,null,"F"]
["1 Relief Society  Secretary",null,"Open",null,null,"F"]
["1 Relief Society Compassionate Service  Leader",null,"Open",null,null,"F"]
["1 Relief Society Compassionate Service Council Member",null,"Open",null,null,"F"]
["1 Relief Society Compassionate Service Council Member",null,"Open",null,null,"F"]
["1 Relief Society Instructor",null,"Open",null,null,"F"]
["1 Relief Society Instructor",null,"Open",null,null,"F"]
["1 Relief Society Meeting Coordinator",null,"Open",null,null,"F"]
["1 Relief Society Meeting Council Member",null,"Open",null,null,"F"]
["1 Relief Society Meeting Council Member",null,"Open",null,null,"F"]
["1 Relief Society Music-Chorister",null,"Open",null,null,"F"]
["1 Relief Society Music-Pianist",null,"Open",null,null,"F"]
["1 Relief Society VT Coordinator",null,"Open",null,null,"F"]
["1 Relief Society VT Supervisor",null,"Open",null,null,"F"]
["1 Relief Society VT Supervisor",null,"Open",null,null,"F"]
["1 Relief Society VT Supervisor",null,"Open",null,null,"F"]
["2 Elders   President**",null,"Open",null,null,"M"]
["2 Elders  1st Counselor",null,"Open",null,null,"M"]
["2 Elders  2nd Counselor",null,"Open",null,null,"M"]
["2 Elders  Secretary",null,"Open",null,null,"M"]
["2 Elders Activities Council Chair",null,"Open",null,null,"M"]
["2 Elders Activities Council Member",null,"Open",null,null,"M"]
["2 Elders Activities Council Member",null,"Open",null,null,"M"]
["2 Elders Activities Council Member",null,"Open",null,null,"M"]
["2 Elders Instructor",null,"Open",null,null,"M"]
["2 Elders Instructor",null,"Open",null,null,"M"]
["2 Elders Sacrament & Fast Offerings",null,"Open",null,null,"M"]
["2 Elders Sacrament & Fast Offerings",null,"Open",null,null,"M"]
["2 Relief Society   President**",null,"Open",null,null,"F"]
["2 Relief Society  1st Counselor",null,"Open",null,null,"F"]
["2 Relief Society  2nd Counselor",null,"Open",null,null,"F"]
["2 Relief Society  Secretary",null,"Open",null,null,"F"]
["2 Relief Society Compassionate Service  Leader",null,"Open",null,null,"F"]
["2 Relief Society Compassionate Service Council Member",null,"Open",null,null,"F"]
["2 Relief Society Compassionate Service Council Member",null,"Open",null,null,"F"]
["2 Relief Society Compassionate Service Council Member",null,"Open",null,null,"F"]
["2 Relief Society Instructor",null,"Open",null,null,"F"]
["2 Relief Society Instructor",null,"Open","",null,"F"]
["2 Relief Society Meeting Coordinator",null,"Open",null,null,"F"]
["2 Relief Society Meeting Council Member",null,"Open",null,null,"F"]
["2 Relief Society Meeting Council Member",null,"Open",null,null,"F"]
["2 Relief Society Meeting Council Member",null,"Open",null,null,"F"]
["2 Relief Society Meeting Council Member",null,"Open",null,null,"F"]
["2 Relief Society Music-Chorister",null,"Open",null,null,"F"]
["2 Relief Society Music-Pianist",null,"Open",null,null,"F"]
["2 Relief Society Music-Pianist",null,"Open",null,null,"F"]
["2 Relief Society VT Coordinator",null,"Open",null,null,"F"]
["2 Relief Society VT Supervisor",null,"Open",null,null,"F"]
["2 Relief Society VT Supervisor",null,"Open",null,null,"F"]
["2 Relief Society VT Supervisor",null,"Open",null,null,"F"]
["2 Relief Society VT Supervisor",null,"Open",null,null,"F"]
["Council - Break-the-Fast CoChair (F)*",null,"Open",null,null,"F"]
["Council - Break-the-Fast CoChair (M)*",null,"Open",null,null,"M"]
["Council - Break-the-Fast Council Member ",null,"Open",null,null,"F"]
["Council - Break-the-Fast Council Member ",null,"Open",null,null,"M"]
["Council - Comm.  CoChair (F)*",null,"Open",null,null,"F"]
["Council - Comm.  CoChair (M)*",null,"Open",null,null,"M"]
["Council - Comm. Bulletin Board (F)",null,"Open",null,null,"F"]
["Council - Comm. Bulletin Board (M)",null,"Open",null,null,"M"]
["Council - Comm. Directory",null,"Open",null,null,"n/a"]
["Council - Comm. Newsletter Editor",null,"Open",null,null,"n/a"]
["Council - Comm. Photographer",null,"Open",null,null,"n/a"]
["Council - Comm. Sacrament Program (F)",null,"Open",null,null,"F"]
["Council - Comm. Sacrament Program (M)",null,"Open",null,null,"M"]
["Council - Comm. Ward Historian",null,"Open",null,null,"n/a"]
["Council - Family Hist. Consultant (F)*",null,"Open",null,null,"F"]
["Council - Family Hist. Consultant (M)*",null,"Open",null,null,"M"]
["Council - Family Hist. Council Member",null,"Open",null,null,"F"]
["Council - Family Hist. Council Member",null,"Open",null,null,"M"]
["Council - Family Hist. Council Member",null,"Open",null,null,"F"]
["Council - Family Hist. Council Member",null,"Open",null,null,"M"]
["Council - Family Hist. Indexer",null,"Open",null,null,"n/a"]
["Council - Family Hist. Indexer",null,"Open",null,null,"n/a"]
["Council - Family Hist. Indexer",null,"Open",null,null,"n/a"]
["Council - FHE CoChair & Sun FHE Ldr (F)*",null,"Open",null,null,"F"]
["Council - FHE CoChair & Sun FHE Ldr (M)*",null,"Open",null,null,"M"]
["Council - FHE Group Ldr 1 (F)",null,"Open",null,null,"F"]
["Council - FHE Group Ldr 1 (M)",null,"Open",null,null,"M"]
["Council - FHE Group Ldr 2 (F)",null,"Open",null,null,"F"]
["Council - FHE Group Ldr 2 (M)",null,"Open","",null,"M"]
["Council - FHE Group Ldr 3 (F)",null,"Open",null,null,"F"]
["Council - FHE Group Ldr 3 (M)",null,"Open","",null,"M"]
["Council - FHE Group Ldr 4 (F)",null,"Open",null,null,"F"]
["Council - FHE Group Ldr 4 (M)",null,"Open",null,null,"M"]
["Council - FHE Group Ldr 5 (F)",null,"Open",null,null,"F"]
["Council - FHE Group Ldr 5 (M)",null,"Open",null,null,"M"]
["Council - FHE Group Ldr 6 (F)",null,"Open",null,null,"F"]
["Council - FHE Group Ldr 6 (M)",null,"Open",null,null,"M"]
["Council - FHE Group Ldr 7 (F)",null,"Open",null,null,"F"]
["Council - FHE Group Ldr 7 (M)",null,"Open",null,null,"M"]
["Council - Music  CoChair (F)*",null,"Open",null,null,"F"]
["Council - Music  CoChair (M)*",null,"Open",null,null,"M"]
["Council - Music Choir Director",null,"Open",null,null,"n/a"]
["Council - Music Choir Pianist",null,"Open",null,null,"n/a"]
["Council - Music Choir Pianist",null,"Open",null,null,"n/a"]
["Council - Music Priesthood Mtg. Chorister (M)",null,"Open",null,null,"M"]
["Council - Music Priesthood Mtg. Pianist (M)",null,"Open",null,null,"M"]
["Council - Music Sacrament Mtg. Chorister",null,"Open",null,null,"n/a"]
["Council - Music Sacrament Mtg. Pianst/Organist",null,"Open",null,null,"n/a"]
["Council - Music Sacrament Mtg. Pianst/Organist",null,"Open",null,null,"n/a"]
["Council - Physical Facilities Chair*",null,"Open",null,null,"M"]
["Council - Physical Facilities Council Member",null,"Open",null,null,"F"]
["Council - Physical Facilities Council Member",null,"Open",null,null,"M"]
["Council - Service CoChair (F)*",null,"Open",null,null,"F"]
["Council - Service CoChair (M)*",null,"Open",null,null,"M"]
["Council - Service Council Member",null,"Open",null,null,"F"]
["Council - Service Council Member",null,"Open",null,null,"M"]
["Council - Service Council Member",null,"Open",null,null,"F"]
["Council - Spiritual Welfare CoChair (F)*",null,"Open",null,null,"F"]
["Council - Spiritual Welfare CoChair (M)*",null,"Open",null,null,"M"]
["Council - Spiritual Welfare Council Member",null,"Open",null,null,"F"]
["Council - Spiritual Welfare Council Member",null,"Open",null,null,"M"]
["Council - Spiritual Welfare Council Member",null,"Open",null,null,"F"]
["Council - Temple CoChair (F)*",null,"Open",null,null,"F"]
["Council - Temple CoChair (M)*",null,"Open",null,null,"M"]
["Council - Temple Council Member",null,"Open",null,null,"F"]
["Council - Temple Council Member",null,"Open",null,null,"M"]
["Council - Temple Council Member",null,"Open",null,null,"F"]
["Council - Temple Council Member",null,"Open",null,null,"M"]
["Council - Temporal Welfare CoChair (F)* [Employment Spec.]",null,"Open",null,null,"F"]
["Council - Temporal Welfare CoChair (M)* [Employment Spec.]",null,"Open",null,null,"M"]
["Council - Temporal Welfare Council Member",null,"Open",null,null,"F"]
["Council - Temporal Welfare Council Member",null,"Open",null,null,"M"]
["Council - Temporal Welfare Council Member",null,"Open",null,null,"F"]
["Council - Temporal Welfare Council Member",null,"Open",null,null,"M"]
["Ward Mission Leader**",null,"Open",null,null,"M"]
["Council - Ward Missionary*",null,"Open",null,null,"F"]
["Council - Ward Missionary",null,"Open",null,null,"M"]
["Council - Ward Missionary",null,"Open",null,null,"F"]
["Stake Activities Committee (F)",null,"Open",null,null,"F"]
["Stake Activities Committee (M)",null,"Open",null,null,"M"]
["Stake Institute Instructor",null,"Open",null,null,"n/a"]
["Stake Institute Representative",null,"Open",null,null,"n/a"]
["Stake Relief Society Mentor",null,"Open",null,null,"F"]
["Sunday School   President*",null,"Open",null,null,"M"]
["Sunday School  1st Counselor",null,"Open",null,null,"M"]
["Sunday School  2nd Counselor",null,"Open",null,null,"M"]
["Sunday School  Secretary",null,"Open",null,null,"n/a"]
["Sunday School Instructor - Gospel Doct. (F)",null,"Open",null,null,"F"]
["Sunday School Instructor - Gospel Doct. (M)",null,"Open",null,null,"M"]
["Sunday School Instructor - Family Hist. (F)",null,"Open",null,null,"F"]
["Sunday School Instructor - Family Hist. (M)",null,"Open",null,null,"M"]
["Sunday School Instructor - Temple Prep. (F)",null,"Open",null,null,"F"]
["Sunday School Instructor - Temple Prep. (M)",null,"Open",null,null,"M"]
["Temple Ordinance Worker",null,"Open",null,null,"n/a"]
["Temple Ordinance Worker",null,"Open",null,null,"n/a"]
["Temple Ordinance Worker",null,"Open",null,null,"n/a"]
["Temple Ordinance Worker",null,"Open",null,null,"n/a"]
["Temple Ordinance Worker",null,"Open",null,null,"n/a"]
["Ward    Executive Secretary**",null,"Open",null,null,"M"]
["Ward  Asst Executive Secretary ( Sun 1st Shift )",null,"Open",null,null,"M"]
["Ward  Asst Executive Secretary ( Sun 2nd Shift )",null,"Open",null,null,"M"]
["Ward  Asst Executive Secretary (Tue 1st Shift)",null,"Open",null,null,"M"]
["Ward  Asst Executive Secretary (Tue 2nd Shift)",null,"Open",null,null,"M"]
["Ward  Clerk**",null,"Open",null,null,"M"]
["Ward Asst Clerk Financial",null,"Open",null,null,"M"]
["Ward Asst Clerk Membership",null,"Open",null,null,"M"]
["Ward Asst Clerk Statistical/Callings",null,"Open",null,null,"M"]
["Ward Prayer CoChair (F)*",null,"Open",null,null,"F"]
["Ward Prayer CoChair (M)*",null,"Open",null,null,"M"]
[]
[null,"Filled:",{"$f":"COUNTA(B2:B175)-COUNTIF(C2:C175,\"Need To Release\")-COUNTIF(C2:C175,\"Released\")-COUNTIF(C2:C175,\"Change\")","v":0}]
[null,"Left to Fill",{"$f":"COUNTIF(C2:C175,\"Open\") + COUNTIF(C2:C175,\"Need To Release\") + COUNTIF(C2:C175,\"Released\") +COUNTIF(C2:C175,\"In Progress\")","v":174}]
[null,"Proposed",{"$f":"COUNTA(D2:D175) - COUNTIF(D2:D175, \"x\")","v":3}]
[null,"Open:",{"$f":"C178-C179","v":171}]
[]
[null,"Open",{"$f":"COUNTIF($C$2:$C$175,\"Open\")","v":174}]
[null,"Need to Release",{"$f":"COUNTIF($C$2:$C$175,\"Need To Release\")","v":0}]
[null,"Released",{"$f":"COUNTIF($C$2:$C$175,\"Released\")","v":0}]
[null,"In Progress",{"$f":"COUNTIF($C$2:$C$175,\"In Progress\")","v":0}]
[]
[null,"Male callings",{"$f":"COUNTIF($F$2:$F$175,\"M\")","v":74}]
[null,"Female callings",{"$f":"COUNTIF($F$2:$F$175,\"F\")","v":79}]
[null,"Non-gender specific callings",{"$f":"COUNTIF($F$2:$F$175,\"n/a\")","v":21}]
[]
[]
["Current Status Values"]
["Open"]
["Sustained"]
["Set Apart"]
["Need To Release"]
["Released"]
["In Progress"]
["Change"]
["Leave Open"]
[]
["Proposed Status Values"]
["Not Yet Approved"]
["Approved"]
["Called"]
["Sustained"]
["Hold"]
["Submitted"]
[]
[]
["Actions still to take"]

{"sheet":"Actions","index":2,"n_rows":0,"n_cols":0,"rows_kept":0,"cut":false,"hidden":false,"merged":[]}

{"sheet":"Openings","index":3,"n_rows":174,"n_cols":4,"rows_kept":174,"cut":false,"hidden":false,"merged":[]}
[null,null,"Open Position","1 Elders   President**"]
[null,null,"Open Position","1 Elders  1st Counselor"]
[null,null,"Open Position","1 Elders  2nd Counselor"]
[null,null,"Open Position","1 Elders  Secretary"]
[null,null,"Open Position","1 Elders Activities Council Chair"]
[null,null,"Open Position","1 Elders Activities Council Member"]
[null,null,"Open Position","1 Elders Activities Council Member"]
[null,null,"Open Position","1 Elders Activities Council Member"]
[null,null,"Open Position","1 Elders Instructor"]
[null,null,"Open Position","1 Elders Instructor"]
[null,null,"Open Position","1 Elders Sacrament & Fast Offerings"]
[null,null,"Open Position","1 Elders Sacrament & Fast Offerings"]
[null,null,"Open Position","1 Relief Society   President**"]
[null,null,"Open Position","1 Relief Society  1st Counselor"]
[null,null,"Open Position","1 Relief Society  2nd Counselor"]
[null,null,"Open Position","1 Relief Society  Secretary"]
[null,null,"Open Position","1 Relief Society Compassionate Service  Leader"]
[null,null,"Open Position","1 Relief Society Compassionate Service Council Member"]
[null,null,"Open Position","1 Relief Society Compassionate Service Council Member"]
[null,null,"Open Position","1 Relief Society Instructor"]
[null,null,"Open Position","1 Relief Society Instructor"]
[null,null,"Open Position","1 Relief Society Meeting Coordinator"]
[null,null,"Open Position","1 Relief Society Meeting Council Member"]
[null,null,"Open Position","1 Relief Society Meeting Council Member"]
[null,null,"Open Position","1 Relief Society Music-Chorister"]
[null,null,"Open Position","1 Relief Society Music-Pianist"]
[null,null,"Open Position","1 Relief Society VT Coordinator"]
[null,null,"Open Position","1 Relief Society VT Supervisor"]
[null,null,"Open Position","1 Relief Society VT Supervisor"]
[null,null,"Open Position","1 Relief Society VT Supervisor"]
[null,null,"Open Position","2 Elders   President**"]
[null,null,"Open Position","2 Elders  1st Counselor"]
[null,null,"Open Position","2 Elders  2nd Counselor"]
[null,null,"Open Position","2 Elders  Secretary"]
[null,null,"Open Position","2 Elders Activities Council Chair"]
[null,null,"Open Position","2 Elders Activities Council Member"]
[null,null,"Open Position","2 Elders Activities Council Member"]
[null,null,"Open Position","2 Elders Activities Council Member"]
[null,null,"Open Position","2 Elders Instructor"]
[null,null,"Open Position","2 Elders Instructor"]
[null,null,"Open Position","2 Elders Sacrament & Fast Offerings"]
[null,null,"Open Position","2 Elders Sacrament & Fast Offerings"]
[null,null,"Open Position","2 Relief Society   President**"]
[null,null,"Open Position","2 Relief Society  1st Counselor"]
[null,null,"Open Position","2 Relief Society  2nd Counselor"]
[null,null,"Open Position","2 Relief Society  Secretary"]
[null,null,"Open Position","2 Relief Society Compassionate Service  Leader"]
[null,null,"Open Position","2 Relief Society Compassionate Service Council Member"]
[null,null,"Open Position","2 Relief Society Compassionate Service Council Member"]
[null,null,"Open Position","2 Relief Society Compassionate Service Council Member"]
[null,null,"Open Position","2 Relief Society Instructor"]
[null,null,"Open Position","2 Relief Society Instructor"]
[null,null,"Open Position","2 Relief Society Meeting Coordinator"]
[null,null,"Open Position","2 Relief Society Meeting Council Member"]
[null,null,"Open Position","2 Relief Society Meeting Council Member"]
[null,null,"Open Position","2 Relief Society Meeting Council Member"]
[null,null,"Open Position","2 Relief Society Meeting Council Member"]
[null,null,"Open Position","2 Relief Society Music-Chorister"]
[null,null,"Open Position","2 Relief Society Music-Pianist"]
[null,null,"Open Position","2 Relief Society Music-Pianist"]
[null,null,"Open Position","2 Relief Society VT Coordinator"]
[null,null,"Open Position","2 Relief Society VT Supervisor"]
[null,null,"Open Position","2 Relief Society VT Supervisor"]
[null,null,"Open Position","2 Relief Society VT Supervisor"]
[null,null,"Open Position","2 Relief Society VT Supervisor"]
[null,null,"Open Position","Council - Break-the-Fast CoChair (F)*"]
[null,null,"Open Position","Council - Break-the-Fast CoChair (M)*"]
[null,null,"Open Position","Council - Break-the-Fast Council Member "]
[null,null,"Open Position","Council - Break-the-Fast Council Member "]
[null,null,"Open Position","Council - Comm.  CoChair (F)*"]
[null,null,"Open Position","Council - Comm.  CoChair (M)*"]
[null,null,"Open Position","Council - Comm. Bulletin Board (F)"]
[null,null,"Open Position","Council - Comm. Bulletin Board (M)"]
[null,null,"Open Position","Council - Comm. Directory"]
[null,null,"Open Position","Council - Comm. Newsletter Editor"]
[null,null,"Open Position","Council - Comm. Photographer"]
[null,null,"Open Position","Council - Comm. Sacrament Program (F)"]
[null,null,"Open Position","Council - Comm. Sacrament Program (M)"]
[null,null,"Open Position","Council - Comm. Ward Historian"]
[null,null,"Open Position","Council - Family Hist. Consultant (F)*"]
[null,null,"Open Position","Council - Family Hist. Consultant (M)*"]
[null,null,"Open Position","Council - Family Hist. Council Member"]
[null,null,"Open Position","Council - Family Hist. Council Member"]
[null,null,"Open Position","Council - Family Hist. Council Member"]
[null,null,"Open Position","Council - Family Hist. Council Member"]
[null,null,"Open Position","Council - Family Hist. Indexer"]
[null,null,"Open Position","Council - Family Hist. Indexer"]
[null,null,"Open Position","Council - Family Hist. Indexer"]
[null,null,"Open Position","Council - FHE CoChair & Sun FHE Ldr (F)*"]
[null,null,"Open Position","Council - FHE CoChair & Sun FHE Ldr (M)*"]
[null,null,"Open Position","Council - FHE Group Ldr 1 (F)"]
[null,null,"Open Position","Council - FHE Group Ldr 1 (M)"]
[null,null,"Open Position","Council - FHE Group Ldr 2 (F)"]
[null,null,"Open Position","Council - FHE Group Ldr 2 (M)"]
[null,null,"Open Position","Council - FHE Group Ldr 3 (F)"]
[null,null,"Open Position","Council - FHE Group Ldr 3 (M)"]
[null,null,"Open Position","Council - FHE Group Ldr 4 (F)"]
[null,null,"Open Position","Council - FHE Group Ldr 4 (M)"]
[null,null,"Open Position","Council - FHE Group Ldr 5 (F)"]
[null,null,"Open Position","Council - FHE Group Ldr 5 (M)"]
[null,null,"Open Position","Council - FHE Group Ldr 6 (F)"]
[null,null,"Open Position","Council - FHE Group Ldr 6 (M)"]
[null,null,"Open Position","Council - FHE Group Ldr 7 (F)"]
[null,null,"Open Position","Council - FHE Group Ldr 7 (M)"]
[null,null,"Open Position","Council - Music  CoChair (F)*"]
[null,null,"Open Position","Council - Music  CoChair (M)*"]
[null,null,"Open Position","Council - Music Choir Director"]
[null,null,"Open Position","Council - Music Choir Pianist"]
[null,null,"Open Position","Council - Music Choir Pianist"]
[null,null,"Open Position","Council - Music Priesthood Mtg. Chorister (M)"]
[null,null,"Open Position","Council - Music Priesthood Mtg. Pianist (M)"]
[null,null,"Open Position","Council - Music Sacrament Mtg. Chorister"]
[null,null,"Open Position","Council - Music Sacrament Mtg. Pianst/Organist"]
[null,null,"Open Position","Council - Music Sacrament Mtg. Pianst/Organist"]
[null,null,"Open Position","Council - Physical Facilities Chair*"]
[null,null,"Open Position","Council - Physical Facilities Council Member"]
[null,null,"Open Position","Council - Physical Facilities Council Member"]
[null,null,"Open Position","Council - Service CoChair (F)*"]
[null,null,"Open Position","Council - Service CoChair (M)*"]
[null,null,"Open Position","Council - Service Council Member"]
[null,null,"Open Position","Council - Service Council Member"]
[null,null,"Open Position","Council - Service Council Member"]
[null,null,"Open Position","Council - Spiritual Welfare CoChair (F)*"]
[null,null,"Open Position","Council - Spiritual Welfare CoChair (M)*"]
[null,null,"Open Position","Council - Spiritual Welfare Council Member"]
[null,null,"Open Position","Council - Spiritual Welfare Council Member"]
[null,null,"Open Position","Council - Spiritual Welfare Council Member"]
[null,null,"Open Position","Council - Temple CoChair (F)*"]
[null,null,"Open Position","Council - Temple CoChair (M)*"]
[null,null,"Open Position","Council - Temple Council Member"]
[null,null,"Open Position","Council - Temple Council Member"]
[null,null,"Open Position","Council - Temple Council Member"]
[null,null,"Open Position","Council - Temple Council Member"]
[null,null,"Open Position","Council - Temporal Welfare CoChair (F)* [Employment Spec.]"]
[null,null,"Open Position","Council - Temporal Welfare CoChair (M)* [Employment Spec.]"]
[null,null,"Open Position","Council - Temporal Welfare Council Member"]
[null,null,"Open Position","Council - Temporal Welfare Council Member"]
[null,null,"Open Position","Council - Temporal Welfare Council Member"]
[null,null,"Open Position","Council - Temporal Welfare Council Member"]
[null,null,"Open Position","Ward Mission Leader**"]
[null,null,"Open Position","Council - Ward Missionary*"]
[null,null,"Open Position","Council - Ward Missionary"]
[null,null,"Open Position","Council - Ward Missionary"]
[null,null,"Open Position","Stake Activities Committee (F)"]
[null,null,"Open Position","Stake Activities Committee (M)"]
[null,null,"Open Position","Stake Institute Instructor"]
[null,null,"Open Position","Stake Institute Representative"]
[null,null,"Open Position","Stake Relief Society Mentor"]
[null,null,"Open Position","Sunday School   President*"]
[null,null,"Open Position","Sunday School  1st Counselor"]
[null,null,"Open Position","Sunday School  2nd Counselor"]
[null,null,"Open Position","Sunday School  Secretary"]
[null,null,"Open Position","Sunday School Instructor - Gospel Doct. (F)"]
[null,null,"Open Position","Sunday School Instructor - Gospel Doct. (M)"]
[null,null,"Open Position","Sunday School Instructor - Family Hist. (F)"]
[null,null,"Open Position","Sunday School Instructor - Family Hist. (M)"]
[null,null,"Open Position","Sunday School Instructor - Temple Prep. (F)"]
[null,null,"Open Position","Sunday School Instructor - Temple Prep. (M)"]
[null,null,"Open Position","Temple Ordinance Worker"]
[null,null,"Open Position","Temple Ordinance Worker"]
[null,null,"Open Position","Temple Ordinance Worker"]
[null,null,"Open Position","Temple Ordinance Worker"]
[null,null,"Open Position","Temple Ordinance Worker"]
[null,null,"Open Position","Ward    Executive Secretary**"]
[null,null,"Open Position","Ward  Asst Executive Secretary ( Sun 1st Shift )"]
[null,null,"Open Position","Ward  Asst Executive Secretary ( Sun 2nd Shift )"]
[null,null,"Open Position","Ward  Asst Executive Secretary (Tue 1st Shift)"]
[null,null,"Open Position","Ward  Asst Executive Secretary (Tue 2nd Shift)"]
[null,null,"Open Position","Ward  Clerk**"]
[null,null,"Open Position","Ward Asst Clerk Financial"]
[null,null,"Open Position","Ward Asst Clerk Membership"]
[null,null,"Open Position","Ward Asst Clerk Statistical/Callings"]
[null,null,"Open Position","Ward Prayer CoChair (F)*"]
[null,null,"Open Position","Ward Prayer CoChair (M)*"]

{"sheet":"FHE assigments","index":4,"n_rows":25,"n_cols":2,"rows_kept":25,"cut":false,"hidden":false,"merged":[]}
["Count of FHE"]
["Row Labels","Total"]
[1,24]
["Female",12]
["Male",12]
[2,20]
["Female",12]
["Male",8]
[3,20]
["Female",12]
["Male",8]
[4,16]
["Female",8]
["Male",8]
[5,18]
["Female",11]
["Male",7]
[6,21]
["Female",12]
["Male",9]
[7,16]
["Female",8]
["Male",8]
["(blank)"]
["Grand Total",135]

{"sheet":"Statistics","index":5,"n_rows":18,"n_cols":7,"rows_kept":18,"cut":false,"hidden":false,"merged":[]}
["Ward Statistics"]
[null,null,null,"Age","Male","Female","Total"]
["Average female age",{"$f":"AVERAGEIF(Members!C2:Members!#REF!, \"=Female\",Members!L2:Members!#REF!)","v":{"$error":"#REF!"}},null,17,{"$f":"SUM(IF((Members!$A$2:Members!#REF!<>\"\")*(Members!$C$2:Members!#REF!=\"Male\")*(IF((Members!$L$2:Members!#REF!>=$D3) * (Members!$L$2:Members!#REF!<$D3+1),1,0)),1,0))","v":{"$error":"#REF!"}},{"$f":"SUM(IF((Members!$A$2:Members!#REF!<>\"\")*(Members!$C$2:Members!#REF!=\"Female\")*(IF((Members!$L$2:Members!#REF!>=$D3) * (Members!$L$2:Members!#REF!<$D3+1),1,0)),1,0))","v":{"$error":"#REF!"}},{"$f":"E3+F3","v":{"$error":"#REF!"}}]
["Average male age",{"$f":"AVERAGEIF(Members!C2:Members!#REF!, \"=Male\", Members!L2:Members!#REF!)","v":{"$error":"#REF!"}},null,18,{"$f":"SUM(IF((Members!$A$2:Members!#REF!<>\"\")*(Members!$C$2:Members!#REF!=\"Male\")*(IF((Members!$L$2:Members!#REF!>=$D4) * (Members!$L$2:Members!#REF!<$D4+1),1,0)),1,0))","v":{"$error":"#REF!"}},{"$f":"SUM(IF((Members!$A$2:Members!#REF!<>\"\")*(Members!$C$2:Members!#REF!=\"Female\")*(IF((Members!$L$2:Members!#REF!>=$D4) * (Members!$L$2:Members!#REF!<$D4+1),1,0)),1,0))","v":{"$error":"#REF!"}},{"$f":"E4+F4","v":{"$error":"#REF!"}}]
["Average age",{"$f":"AVERAGE(Members!L2:Members!#REF!)","v":{"$error":"#REF!"}},null,19,{"$f":"SUM(IF((Members!$A$2:Members!#REF!<>\"\")*(Members!$C$2:Members!#REF!=\"Male\")*(IF((Members!$L$2:Members!#REF!>=$D5) * (Members!$L$2:Members!#REF!<$D5+1),1,0)),1,0))","v":{"$error":"#REF!"}},{"$f":"SUM(IF((Members!$A$2:Members!#REF!<>\"\")*(Members!$C$2:Members!#REF!=\"Female\")*(IF((Members!$L$2:Members!#REF!>=$D5) * (Members!$L$2:Members!#REF!<$D5+1),1,0)),1,0))","v":{"$error":"#REF!"}},{"$error":"#REF!"}]
["Oldest female",{"$f":"MAX(IF((Members!$A$2:Members!#REF!<>\"\")*(Members!$C$2:Members!#REF!=\"Female\")*(Members!$L$2:Members!#REF!<>\"\"),Members!$L$2:Members!#REF!,0))","v":{"$error":"#REF!"}},null,20,{"$f":"SUM(IF((Members!$A$2:Members!#REF!<>\"\")*(Members!$C$2:Members!#REF!=\"Male\")*(IF((Members!$L$2:Members!#REF!>=$D6) * (Members!$L$2:Members!#REF!<$D6+1),1,0)),1,0))","v":{"$error":"#REF!"}},{"$f":"SUM(IF((Members!$A$2:Members!#REF!<>\"\")*(Members!$C$2:Members!#REF!=\"Female\")*(IF((Members!$L$2:Members!#REF!>=$D6) * (Members!$L$2:Members!#REF!<$D6+1),1,0)),1,0))","v":{"$error":"#REF!"}},{"$error":"#REF!"}]
["Oldest male",{"$f":"MAX(IF((Members!$A$2:Members!#REF!<>\"\")*(Members!$C$2:Members!#REF!=\"Male\")*(Members!$L$2:Members!#REF!<>\"\"),Members!$L$2:Members!#REF!,0))","v":{"$error":"#REF!"}},null,21,{"$f":"SUM(IF((Members!$A$2:Members!#REF!<>\"\")*(Members!$C$2:Members!#REF!=\"Male\")*(IF((Members!$L$2:Members!#REF!>=$D7) * (Members!$L$2:Members!#REF!<$D7+1),1,0)),1,0))","v":{"$error":"#REF!"}},{"$f":"SUM(IF((Members!$A$2:Members!#REF!<>\"\")*(Members!$C$2:Members!#REF!=\"Female\")*(IF((Members!$L$2:Members!#REF!>=$D7) * (Members!$L$2:Members!#REF!<$D7+1),1,0)),1,0))","v":{"$error":"#REF!"}},{"$error":"#REF!"}]
["Youngest female",{"$f":"MIN(IF((Members!$A$2:Members!#REF!<>\"\")*(Members!$C$2:Members!#REF!=\"Female\")*(Members!$L$2:Members!#REF!<>\"\")*(Members!$L$2:Members!#REF!<>0),Members!$L$2:Members!#REF!,999))","v":{"$error":"#REF!"}},null,22,{"$f":"SUM(IF((Members!$A$2:Members!#REF!<>\"\")*(Members!$C$2:Members!#REF!=\"Male\")*(IF((Members!$L$2:Members!#REF!>=$D8) * (Members!$L$2:Members!#REF!<$D8+1),1,0)),1,0))","v":{"$error":"#REF!"}},{"$f":"SUM(IF((Members!$A$2:Members!#REF!<>\"\")*(Members!$C$2:Members!#REF!=\"Female\")*(IF((Members!$L$2:Members!#REF!>=$D8) * (Members!$L$2:Members!#REF!<$D8+1),1,0)),1,0))","v":{"$error":"#REF!"}},{"$error":"#REF!"}]
["Youngest male",{"$f":"MIN(IF((Members!$A$2:Members!#REF!<>\"\")*(Members!$C$2:Members!#REF!=\"Male\")*(Members!$L$2:Members!#REF!<>\"\")*(Members!$L$2:Members!#REF!<>0),Members!$L$2:Members!#REF!,999))","v":{"$error":"#REF!"}},null,23,{"$f":"SUM(IF((Members!$A$2:Members!#REF!<>\"\")*(Members!$C$2:Members!#REF!=\"Male\")*(IF((Members!$L$2:Members!#REF!>=$D9) * (Members!$L$2:Members!#REF!<$D9+1),1,0)),1,0))","v":{"$error":"#REF!"}},{"$f":"SUM(IF((Members!$A$2:Members!#REF!<>\"\")*(Members!$C$2:Members!#REF!=\"Female\")*(IF((Members!$L$2:Members!#REF!>=$D9) * (Members!$L$2:Members!#REF!<$D9+1),1,0)),1,0))","v":{"$error":"#REF!"}},{"$error":"#REF!"}]
["Number 25+ female",{"$f":"SUM(IF((Members!$A$2:Members!#REF!<>\"\")*(Members!$C$2:Members!#REF!=\"Female\")*(Members!$L$2:Members!#REF!<>\"\") * (Members!$L$2:Members!#REF!>=25),1,0))","v":{"$error":"#REF!"}},null,24,{"$f":"SUM(IF((Members!$A$2:Members!#REF!<>\"\")*(Members!$C$2:Members!#REF!=\"Male\")*(IF((Members!$L$2:Members!#REF!>=$D10) * (Members!$L$2:Members!#REF!<$D10+1),1,0)),1,0))","v":{"$error":"#REF!"}},{"$f":"SUM(IF((Members!$A$2:Members!#REF!<>\"\")*(Members!$C$2:Members!#REF!=\"Female\")*(IF((Members!$L$2:Members!#REF!>=$D10) * (Members!$L$2:Members!#REF!<$D10+1),1,0)),1,0))","v":{"$error":"#REF!"}},{"$error":"#REF!"}]
["Number 25+ male",{"$f":"SUM(IF((Members!$A$2:Members!#REF!<>\"\")*(Members!$C$2:Members!#REF!=\"Male\")*(Members!$L$2:Members!#REF!<>\"\") * (Members!$L$2:Members!#REF!>=25),1,0))","v":{"$error":"#REF!"}},null,25,{"$f":"SUM(IF((Members!$A$2:Members!#REF!<>\"\")*(Members!$C$2:Members!#REF!=\"Male\")*(IF((Members!$L$2:Members!#REF!>=$D11) * (Members!$L$2:Members!#REF!<$D11+1),1,0)),1,0))","v":{"$error":"#REF!"}},{"$f":"SUM(IF((Members!$A$2:Members!#REF!<>\"\")*(Members!$C$2:Members!#REF!=\"Female\")*(IF((Members!$L$2:Members!#REF!>=$D11) * (Members!$L$2:Members!#REF!<$D11+1),1,0)),1,0))","v":{"$error":"#REF!"}},{"$error":"#REF!"}]
[null,null,null,26,{"$f":"SUM(IF((Members!$A$2:Members!#REF!<>\"\")*(Members!$C$2:Members!#REF!=\"Male\")*(IF((Members!$L$2:Members!#REF!>=$D12) * (Members!$L$2:Members!#REF!<$D12+1),1,0)),1,0))","v":{"$error":"#REF!"}},{"$f":"SUM(IF((Members!$A$2:Members!#REF!<>\"\")*(Members!$C$2:Members!#REF!=\"Female\")*(IF((Members!$L$2:Members!#REF!>=$D12) * (Members!$L$2:Members!#REF!<$D12+1),1,0)),1,0))","v":{"$error":"#REF!"}},{"$error":"#REF!"}]
[null,null,null,27,{"$f":"SUM(IF((Members!$A$2:Members!#REF!<>\"\")*(Members!$C$2:Members!#REF!=\"Male\")*(IF((Members!$L$2:Members!#REF!>=$D13) * (Members!$L$2:Members!#REF!<$D13+1),1,0)),1,0))","v":{"$error":"#REF!"}},{"$f":"SUM(IF((Members!$A$2:Members!#REF!<>\"\")*(Members!$C$2:Members!#REF!=\"Female\")*(IF((Members!$L$2:Members!#REF!>=$D13) * (Members!$L$2:Members!#REF!<$D13+1),1,0)),1,0))","v":{"$error":"#REF!"}},{"$error":"#REF!"}]
[null,null,null,28,{"$f":"SUM(IF((Members!$A$2:Members!#REF!<>\"\")*(Members!$C$2:Members!#REF!=\"Male\")*(IF((Members!$L$2:Members!#REF!>=$D14) * (Members!$L$2:Members!#REF!<$D14+1),1,0)),1,0))","v":{"$error":"#REF!"}},{"$f":"SUM(IF((Members!$A$2:Members!#REF!<>\"\")*(Members!$C$2:Members!#REF!=\"Female\")*(IF((Members!$L$2:Members!#REF!>=$D14) * (Members!$L$2:Members!#REF!<$D14+1),1,0)),1,0))","v":{"$error":"#REF!"}},{"$error":"#REF!"}]
[null,null,null,29,{"$f":"SUM(IF((Members!$A$2:Members!#REF!<>\"\")*(Members!$C$2:Members!#REF!=\"Male\")*(IF((Members!$L$2:Members!#REF!>=$D15) * (Members!$L$2:Members!#REF!<$D15+1),1,0)),1,0))","v":{"$error":"#REF!"}},{"$f":"SUM(IF((Members!$A$2:Members!#REF!<>\"\")*(Members!$C$2:Members!#REF!=\"Female\")*(IF((Members!$L$2:Members!#REF!>=$D15) * (Members!$L$2:Members!#REF!<$D15+1),1,0)),1,0))","v":{"$error":"#REF!"}},{"$error":"#REF!"}]
[null,null,null,30,{"$f":"SUM(IF((Members!$A$2:Members!#REF!<>\"\")*(Members!$C$2:Members!#REF!=\"Male\")*(IF((Members!$L$2:Members!#REF!>=$D16) * (Members!$L$2:Members!#REF!<$D16+1),1,0)),1,0))","v":{"$error":"#REF!"}},{"$f":"SUM(IF((Members!$A$2:Members!#REF!<>\"\")*(Members!$C$2:Members!#REF!=\"Female\")*(IF((Members!$L$2:Members!#REF!>=$D16) * (Members!$L$2:Members!#REF!<$D16+1),1,0)),1,0))","v":{"$error":"#REF!"}},{"$error":"#REF!"}]
[null,null,null,31,{"$f":"SUM(IF((Members!$A$2:Members!#REF!<>\"\")*(Members!$C$2:Members!#REF!=\"Male\")*(IF((Members!$L$2:Members!#REF!>=$D17) * (Members!$L$2:Members!#REF!<$D17+1),1,0)),1,0))","v":{"$error":"#REF!"}},{"$f":"SUM(IF((Members!$A$2:Members!#REF!<>\"\")*(Members!$C$2:Members!#REF!=\"Female\")*(IF((Members!$L$2:Members!#REF!>=$D17) * (Members!$L$2:Members!#REF!<$D17+1),1,0)),1,0))","v":{"$error":"#REF!"}},{"$error":"#REF!"}]
[null,null,null,32,{"$f":"SUM(IF((Members!$A$2:Members!#REF!<>\"\")*(Members!$C$2:Members!#REF!=\"Male\")*(IF((Members!$L$2:Members!#REF!>=$D18) * (Members!$L$2:Members!#REF!<$D18+1),1,0)),1,0))","v":{"$error":"#REF!"}},{"$f":"SUM(IF((Members!$A$2:Members!#REF!<>\"\")*(Members!$C$2:Members!#REF!=\"Female\")*(IF((Members!$L$2:Members!#REF!>=$D18) * (Members!$L$2:Members!#REF!<$D18+1),1,0)),1,0))","v":{"$error":"#REF!"}},{"$error":"#REF!"}]

{"sheet":"Work area","index":6,"n_rows":0,"n_cols":0,"rows_kept":0,"cut":false,"hidden":false,"merged":[]}